[Event "1000GM Saint Louis 2022"]
[Site "Saint Louis"]
[Date "2022.07.19"]
[Round "1.1"]
[White "Abrahamyan, Tatev"]
[Black "Woodward, Andy"]
[Result "0-1"]
[ECO "B90"]
[WhiteElo "2291"]
[BlackElo "2486"]
[Annotator "TA"]
[PlyCount "124"]
[EventDate "2022.07.20"]
[EventType "tourn"]
[EventCountry "USA"]
[SourceTitle "playchess.com"]
[Source "ChessBase"]
[SourceQuality "1"]
[TimeControl "5400+30"]

{[%evp 15,124,0,14,9,13,36,33,21,38,23,10,23,37,30,54,0,35,12,50,52,49,47,70,77,82,0,10,-43,-57,-45,0,0,22,-2,0,0,0,0,0,0,5,0,0,0,0,0,0,-29,-37,-32,0,-200,-205,-177,-41,-39,0,0,0,-105,0,-34,-32,-31,-35,-273,-265,-332,-294,-335,-328,-315,-277,-271,-285,-359,-350,-337,-293,-310,-312,-304,-189,-184,-91,-291,-282,-495,-480,-519,-474,-650,-644,-634,-595,-608,-611,-880,-829,-5161,-6070,-5114,-2354,-1985,-1565,-29981,-29982,-29981,-29982,-29981,-29982]} 1. e4 {[%emt 0:00:03]} c5 {[%emt 0:00:11]} 2. Nf3 {[%emt 0:00:09]} d6 {[%emt 0:00:08]} 3. d4 {[%emt 0:00:04]} cxd4 {[%emt 0:00:08]} 4. Nxd4 {[%emt 0:00:07]} Nf6 {[%emt 0:00:09]} 5. Nc3 {[%emt 0:00:02]} a6 {[%emt 0:00:08]} 6. f3 {[%emt 0:00:04]} e5 {[%emt 0:00:08]} 7. Nb3 {[%emt 0:00:03]} Be6 {[%emt 0:00:09]} 8. Be3 {[%emt 0:00:05]} h5 {[%emt 0:00:09]} 9. Nd5 {[%emt 0:00:47] B90: Sicilian Najdorf: Unusual White 6th moves, 6 Be3 Ng4 and 6 Be3 e5.} Bxd5 {[%emt 0:01:54]} 10. exd5 {[%emt 0:00:09]} Nbd7 {[%emt 0:00:08][%cal Bb8d7,Bd7b6,Bb6d5][%mdl 32]} 11. Qd2 {[%emt 0:00:37] White is slightly better.} g6 {[%emt 0:01:29]} 12. O-O-O {[%emt 0:00:27]} Nb6 {[%emt 0:01:52]} 13. Kb1 {[%emt 0:00:33]} Nbxd5 {[%emt 0:18:38]} 14. Bg5 {[%emt 0:00:32] Hoping for Qxd5.} Be7 $1 {[%emt 0:01:06]} 15. Bd3 {[%emt 0:03:28] now scores much better than the old 15.g3.} (15. Bc4 $14) 15... Rc8 {[%emt 0:07:11] [#]} 16. g3 $146 {[%emt 0:07:23]} ({Predecessor:} 16. Rhe1 O-O 17. h4 Nb6 18. g4 Nc4 19. Qg2 Kh8 20. Nd2 b5 21. Bxc4 bxc4 22. Bxf6+ Bxf6 {1-0 (30) Aronian,L (2772)-So,W (2760) Bucharest 2019}) 16... b5 {[%emt 0:12:28]} 17. Rhe1 {[%emt 0:13:18]} Nb6 {[%emt 0:08:15]} 18. f4 {[%emt 0:15:23]} Nfd7 {[%emt 0:09:28]} 19. Bxe7 {[%emt 0:10:38]} Qxe7 {[%emt 0:00:19]} 20. Na5 {[%emt 0:07:11]} (20. Bf1 $16) 20... O-O {[%emt 0:04:37]} 21. f5 {[%emt 0:06:18]} (21. Be4 $11) 21... Kg7 $15 {[%emt 0:03:54]} 22. Be4 {[%emt 0:04:34] Prevents d5.} d5 {[%emt 0:05:01]} 23. Bxd5 {[%emt 0:01:56]} Nf6 {[%emt 0:00:29]} 24. Bf3 {[%emt 0:04:05] And now Nc6 would win.} ({Don't play} 24. Nc6 Qc5 25. Bh1 Rxc6 26. Bxc6 Qxc6 27. fxg6 Nc4 $17) (24. Bb7 $5 {[%cal Rb7c8]} Rcd8 25. Nc6 Rxd2 26. Nxe7 Rxd1+ 27. Rxd1 $14) 24... Qc7 {[%emt 0:06:00]} 25. fxg6 {[%emt 0:14:39]} fxg6 {[%emt 0:00:58]} 26. c3 {[%emt 0:02:17]} Rfd8 {[%emt 0:04:28] Prevents Qd6.} 27. Qg5 {[%emt 0:03:11]} Rxd1+ {[%emt 0:03:19]} 28. Bxd1 {[%emt 0:00:55]} Re8 {[%emt 0:01:22]} 29. Bc2 {[%emt 0:02:09]} e4 $1 {[%emt 0:00:30][%cal Be5e4,Be4e3][%mdl 32]} 30. Nb3 {[%emt 0:00:06]} Re5 {[%emt 0:01:42]} 31. Qd2 {[%emt 0:02:40]} Nc4 {[%emt 0:00:56]} 32. Qe2 {[%emt 0:00:13]} Nd5 {[%emt 0:01:24]} 33. Qf2 $2 {[%emt 0:01:54]} ({Wrong is} 33. Bxe4 $2 Nf6 34. Qf2 Rxe4 $19) (33. Ka1 $11 {and White has nothing to worry.}) 33... e3 $19 {[%emt 0:02:55]} 34. Qe2 {[%emt 0:00:20] [#]} Nf6 {[%emt 0:03:12]} ({Black should play} 34... Nxb2 $1 $19 {[%mdl 512]} 35. Kxb2 Qxc3+ 36. Kb1 Nb6) 35. Nd4 {[%emt 0:00:17]} a5 {[%emt 0:00:48]} 36. Qd3 {[%emt 0:00:41]} Qf7 {[%emt 0:01:24] Active counter play!} 37. a4 {[%emt 0:00:39]} (37. Kc1 $11) 37... b4 {[%emt 0:00:24]} ({Black should try} 37... Ne4 $17 {White must now prevent ...Nc5.} 38. Ka1 (38. Nxb5 Ncd2+ 39. Ka1 Nc5 $15) 38... bxa4) 38. Kc1 {[%emt 0:00:43]} Ng4 $1 {[%emt 0:01:20] Threatens to win with ...Nf2.} 39. Bb3 {[%emt 0:00:41]} Qf2 {[%emt 0:00:15]} 40. Qe2 {[%emt 0:00:26]} (40. Re2 $1 $15 Qf1+ 41. Qd1 Qxd1+ 42. Kxd1) 40... Nd2 {[%emt 0:00:24]} 41. Bc2 {[%emt 0:00:33]} bxc3 {[%emt 0:00:13]} 42. bxc3 {[%emt 0:00:04]} Nxh2 {[%emt 0:00:55]} 43. Rh1 {[%emt 0:00:53]} Ng4 {[%emt 0:00:45]} 44. Qa6 {[%emt 0:00:26]} Qf7 {[%emt 0:00:16]} 45. Bd3 {[%emt 0:00:31]} Nf2 {[%emt 0:00:20] Against Rd1. Dancing on a razor blade. Pair of Knights!} 46. Re1 {[%emt 0:00:26]} Nxd3+ {[%emt 0:00:49]} 47. Qxd3 {[%emt 0:00:03]} Qf2 {[%emt 0:00:24]} 48. Nc2 {[%emt 0:00:24]} Nf3 {[%emt 0:00:50]} 49. Rxe3 {[%emt 0:00:48] [#]} Rxe3 {[%emt 0:00:14]} (49... Qg1+ $1 $19 50. Kb2 Rxe3 51. Qxe3 Qxe3 52. Nxe3 Nd2) 50. Nxe3 $2 {[%emt 0:00:03]} (50. Qxe3 $17 Qxe3+ 51. Nxe3) 50... Qxg3 {[%emt 0:00:10][%mdl 4096] Endgame KQN-KQN} 51. Qd7+ $2 {[%emt 0:00:39]} (51. Qe4 Ne5 52. Qd4) 51... Kh6 {[%emt 0:00:06]} 52. Qe8 {[%emt 0:01:05]} Ne5 {[%emt 0:00:51]} 53. Qh8+ {[%emt 0:00:40]} Kg5 {[%emt 0:00:01]} 54. Qd8+ {[%emt 0:00:15] [#]} Kf4 $1 {[%emt 0:00:02]} 55. Nd5+ {[%emt 0:00:11]} Ke4 {[%emt 0:00:32]} 56. Nf6+ {[%emt 0:00:29]} Kf5 {[%emt 0:00:07] Strongly threatening ...Qg5+.} 57. Nd5 {[%emt 0:00:25]} Qg5+ {[%emt 0:00:15]} 58. Qxg5+ {[%emt 0:00:11]} Kxg5 {[%emt 0:00:05]} 59. Kd2 {[%emt 0:01:10]} h4 {[%emt 0:00:08][%cal Bh5h4,Bh4h3][%mdl 32] ( -> ...h3)} 60. Ne3 {[%emt 0:00:20]} h3 {[%emt 0:00:10] Black mates.} 61. Nf1 {[%emt 0:00:10]} Kf4 {[%emt 0:00:11]} 62. Ke2 {[%emt 0:00:18]} g5 {[%emt 0:00:09] Weighted Error Value: White=0.76/Black=0.16 (very precise)} 0-1

[Event "1000GM Saint Louis 2022"]
[Site "Saint Louis"]
[Date "2022.07.19"]
[Round "1.3"]
[White "Belous, Vladimir"]
[Black "Chandra, Akshat"]
[Result "1/2-1/2"]
[ECO "A20"]
[WhiteElo "2519"]
[BlackElo "2485"]
[Annotator "TA"]
[PlyCount "81"]
[EventDate "2022.07.20"]
[EventType "tourn"]
[EventCountry "USA"]
[SourceTitle "playchess.com"]
[Source "ChessBase"]
[SourceQuality "1"]
[TimeControl "5400+30"]

{[%evp 9,81,21,21,6,8,8,9,8,12,5,8,8,12,0,4,5,8,8,8,8,8,12,11,5,3,3,5,8,7,9,3,8,17,18,26,26,29,29,29,29,29,19,19,19,19,19,19,19,24,0,0,0,0,0,0,0,0,0,0,0,0,0,0,0,0,0,0,0,0,0,0,0,0,0]} 1. c4 {[%emt 0:00:08]} e5 {[%emt 0:00:09]} 2. g3 {[%emt 0:00:07]} Nf6 {[%emt 0:00:27]} 3. Bg2 {[%emt 0:00:06]} c6 {[%emt 0:00:11]} 4. Nf3 {[%emt 0:00:28]} e4 {[%emt 0:00:18]} 5. Nd4 {[%emt 0:00:02]} Qb6 {[%emt 0:00:14]} (5... d5 {with more complications.} 6. d3 Bc5 7. Nb3 Bb6) 6. Nc2 {[%emt 0:01:18] A20: English Opening: 1...e5.} d5 {[%emt 0:00:17]} 7. cxd5 {[%emt 0:00:41]} cxd5 {[%emt 0:00:09]} 8. Nc3 {[%emt 0:00:22]} Nc6 {[%emt 0:01:58]} 9. O-O {[%emt 0:01:38]} Be7 {[%emt 0:01:23]} 10. d3 {[%emt 0:00:36][%cal Rd3e4]} O-O {[%emt 0:42:44]} 11. Ne3 {[%emt 0:13:36]} Rd8 {[%emt 0:03:31]} 12. dxe4 {[%emt 0:06:32]} dxe4 {[%emt 0:00:34]} 13. Ned5 {[%emt 0:00:26]} Nxd5 {[%emt 0:00:50]} 14. Nxd5 {[%emt 0:00:14]} Qc5 {[%emt 0:04:18]} 15. Bxe4 {[%emt 0:11:47] [#] aiming for Be3.} Be6 {[%emt 0:08:22][%cal Re6d5]} 16. b4 {[%emt 0:02:21]} Nxb4 {[%emt 0:03:05]} 17. Be3 {[%emt 0:00:20][%cal Bc1e3,Be3c5,Bc5e7][%mdl 32]} Rxd5 {[%emt 0:06:04]} 18. Bxc5 {[%emt 0:00:15]} Rxd1 {[%emt 0:00:03]} 19. Bxe7 {[%emt 0:00:06]} Rxa1 {[%emt 0:05:15]} 20. Rxa1 {[%emt 0:00:02] [#]} Nxa2 $146 {[%emt 0:07:25]} ({Predecessor:} 20... Nc6 21. Bc5 Rd8 22. Bxc6 bxc6 23. Bxa7 Ra8 24. Bc5 Rxa2 {½-½ (24) Chibukhchian,A (2410)-Minasian,A (2457) Yerevan 2007}) 21. Bxb7 {[%emt 0:00:43] This bishop pair is nice.} Rb8 {[%emt 0:00:03]} 22. Ba6 {[%emt 0:00:13]} Nb4 {[%emt 0:04:35]} 23. Bxb4 {[%emt 0:01:21]} Rxb4 $11 {[%emt 0:00:01][%mdl 4096] Endgame KRB-KRB} 24. Bd3 {[%emt 0:00:11]} Rb7 {[%emt 0:00:05]} 25. f4 {[%emt 0:00:20]} g6 {[%emt 0:00:17]} 26. Kf2 {[%emt 0:00:05]} Kg7 {[%emt 0:00:45]} 27. Kf3 {[%emt 0:01:01]} h5 {[%emt 0:00:45]} 28. Ra6 {[%emt 0:00:27]} Rc7 {[%emt 0:01:45]} 29. e4 {[%emt 0:01:38]} Rc3 {[%emt 0:01:38] The position is equal.} 30. Ke2 {[%emt 0:00:05]} Bc4 {[%emt 0:00:15]} 31. Bxc4 {[%emt 0:00:07]} Rxc4 {[%emt 0:00:01] KR-KR} 32. Kd3 {[%emt 0:00:06]} Rb4 {[%emt 0:02:52]} 33. Rxa7 {[%emt 0:00:13]} Rb2 {[%emt 0:00:15]} 34. e5 {[%emt 0:00:37]} Kf8 {[%emt 0:00:08]} 35. Kd4 {[%emt 0:00:17]} Rxh2 {[%emt 0:00:10]} 36. e6 {[%emt 0:00:10]} fxe6 {[%emt 0:00:12]} 37. Ke5 {[%emt 0:00:02]} h4 {[%emt 0:04:51]} 38. Kf6 {[%emt 0:00:38][%cal Ra7a8] [#]} Ke8 {[%emt 0:00:19]} 39. g4 {[%emt 0:02:38] And now Re7+ would win.} Rf2 {[%emt 0:00:38]} 40. Kxe6 {[%emt 0:00:37][%cal Ra7a8]} Kf8 {[%emt 0:00:43]} 41. Kf6 {[%emt 0:01:07] An interesting draw.  Weighted Error Value: White=0.02 (flawless) /Black=0.01 (flawless)} 1/2-1/2

[Event "1000GM Saint Louis 2022"]
[Site "Saint Louis"]
[Date "2022.07.19"]
[Round "1.4"]
[White "Mardov, Dimitar"]
[Black "Kretchetov, Alexandre"]
[Result "1-0"]
[ECO "C60"]
[WhiteElo "2396"]
[BlackElo "2219"]
[Annotator "TA"]
[PlyCount "83"]
[EventDate "2022.07.20"]
[EventType "tourn"]
[EventCountry "USA"]
[SourceTitle "playchess.com"]
[Source "ChessBase"]
[SourceQuality "1"]
[TimeControl "5400+30"]

{[%evp 12,83,21,16,51,29,55,55,53,48,59,47,64,20,36,26,24,26,32,24,28,8,0,0,11,0,0,0,27,39,39,-8,21,0,0,-9,-7,-38,-37,-45,-20,-52,-45,-46,-39,-37,-36,-63,-45,-53,0,0,0,0,54,34,71,54,65,49,68,77,65,0,0,0,0,0,838,835,808,767,1263,1087]} 1. e4 {[%emt 0:00:06]} e5 {[%emt 0:00:58]} 2. Nf3 {[%emt 0:00:09]} Nc6 {[%emt 0:00:05]} 3. Bb5 {[%emt 0:00:04]} g6 {[%emt 0:00:51]} 4. d4 exd4 {[%emt 0:00:07]} 5. Bg5 {[%emt 0:00:13]} Be7 {[%emt 0:00:06]} 6. Bxe7 {[%emt 0:00:05]} Qxe7 {[%emt 0:00:10]} 7. O-O {[%emt 0:00:06]} Qc5 {[%emt 0:00:28] C60: Ruy Lopez: Unusual Black 3rd moves and 3...g6.} 8. Ba4 {[%emt 0:00:06]} Nge7 {[%emt 0:03:58]} 9. c3 {[%emt 0:00:48][%cal Rc3d4] [#]} d3 $146 {[%emt 0:00:39] White is slightly better.} ({Predecessor:} 9... dxc3 10. Nxc3 O-O 11. Rc1 Qh5 12. Nd5 Nxd5 13. exd5 Ne5 14. Nxe5 Qxe5 15. Qd2 b6 {0-1 (24) Kleijn,C (2383)-Karayev,A (2275) Kemer 2009}) 10. Qxd3 {[%emt 0:07:58]} O-O {[%emt 0:01:57]} 11. Nbd2 {[%emt 0:04:28]} d6 {[%emt 0:05:43]} 12. Nd4 {[%emt 0:03:30]} a6 {[%emt 0:03:17]} 13. f4 {[%emt 0:10:11]} Nxd4 {[%emt 0:12:23]} 14. cxd4 {[%emt 0:01:55]} Qb4 {[%emt 0:00:09]} 15. Bb3 {[%emt 0:06:59]} d5 {[%emt 0:04:51]} 16. e5 {[%emt 0:09:10]} Bf5 {[%emt 0:02:53]} 17. Qe3 {[%emt 0:03:37]} a5 {[%emt 0:03:41]} 18. a3 {[%emt 0:02:30]} Qb6 {[%emt 0:02:15]} 19. a4 {[%emt 0:06:35]} c6 {[%emt 0:06:02]} 20. h3 {[%emt 0:04:01]} h5 {[%emt 0:01:05] Against g4} 21. Rae1 {[%emt 0:05:06]} (21. Rac1 $14 {deserves consideration.}) 21... Rac8 {[%emt 0:06:29]} 22. Rc1 {[%emt 0:03:58]} Qb4 {[%emt 0:05:26]} 23. Qc3 {[%emt 0:02:46]} b6 {[%emt 0:02:16]} 24. Qxb4 {[%emt 0:01:23]} axb4 {[%emt 0:00:06]} 25. a5 {[%emt 0:01:07]} bxa5 {[%emt 0:04:56]} 26. Rc5 {[%emt 0:01:02]} Bd3 {[%emt 0:00:08]} 27. Ra1 {[%emt 0:04:49]} Nf5 {[%emt 0:12:30]} 28. Nf3 {[%emt 0:01:35]} Be4 {[%emt 0:04:19]} 29. g4 {[%emt 0:02:37]} hxg4 {[%emt 0:03:35]} ({Much worse is} 29... Bxf3 30. gxf5 gxf5 31. Kf2 $11) (29... Ng7 {is interesting.} 30. Ng5 Ne6 31. Rcxa5 Nxd4 32. Bd1 Ne6) 30. hxg4 {[%emt 0:00:06]} Bxf3 {[%emt 0:00:21]} (30... Ng7 $1 $15 31. Ng5 Ne6 32. Nxe4 dxe4 33. Rcxa5 Nxd4) 31. gxf5 $11 {[%emt 0:00:17]} gxf5 {[%emt 0:00:10]} 32. Kf2 {[%emt 0:01:51]} Bg4 {[%emt 0:00:24]} (32... Be4 $11) 33. Rg1 {[%emt 0:02:18]} (33. Ba4 $5 {[%cal Ra4c6]}) 33... Kh7 {[%emt 0:01:56]} 34. Bc2 {[%emt 0:01:49] [#] White wants to mate with Rxg4.} Kh6 {[%emt 0:02:09][%cal Ob4b3]} 35. Rxa5 {[%emt 0:00:30]} Ra8 36. Rc5 {[%emt 0:00:30][%mdl 1024] White has compensation.} Rfc8 {[%emt 0:01:00]} 37. Bd3 {[%emt 0:00:30]} (37. Bb1 $14) 37... Ra2 38. Rc2 {[%emt 0:00:30] [#] aiming for Ke3.} b3 {[%emt 0:01:00]} 39. Rd2 {[%emt 0:00:30] Strongly threatening Ke3.} Rg8 $2 {[%emt 0:00:30][%mdl 8192]} (39... Rh8 $11) 40. Bxf5 $1 $18 {[%emt 0:00:30] White is clearly winning.} Bxf5 {[%emt 0:00:30]} 41. Rxg8 {[%emt 0:00:30] And now Ke3 would win.} Kh7 {[%emt 0:00:30]} 42. Rg5 {[%emt 0:00:30] Weighted Error Value: White=0.12 (very precise) /Black=0.15 (very precise)} 1-0

[Event "1000GM Saint Louis 2022"]
[Site "Saint Louis"]
[Date "2022.07.19"]
[Round "1.5"]
[White "Gauri, Shankar"]
[Black "Dragun, Kamil"]
[Result "0-1"]
[ECO "E18"]
[WhiteElo "2376"]
[BlackElo "2563"]
[Annotator "TA"]
[PlyCount "80"]
[EventDate "2022.07.20"]
[EventType "tourn"]
[EventCountry "USA"]
[SourceTitle "playchess.com"]
[Source "ChessBase"]
[SourceQuality "1"]
[TimeControl "5400+30"]

{[%evp 20,80,0,-5,-22,-11,-2,-56,-29,-33,-33,-28,-41,-36,-41,-32,-39,-45,-45,-63,-38,-45,-59,-64,-63,-65,-57,-141,-141,-136,-40,-37,-39,-99,-104,-110,-108,-102,-92,-133,-134,-174,-130,-244,-222,-243,-63,-60,-65,-324,-325,-494,-493,-563,-549,-1031,-904,-904,-859,-29988,-29973,-29987,-29988]} 1. Nf3 {[%emt 0:00:04]} Nf6 {[%emt 0:00:11]} 2. c4 {[%emt 0:00:46]} e6 {[%emt 0:00:09]} 3. g3 {[%emt 0:00:08]} b6 {[%emt 0:01:33]} 4. Bg2 {[%emt 0:01:37]} Bb7 {[%emt 0:00:17]} 5. d4 {[%emt 0:03:57]} Be7 {[%emt 0:03:00]} 6. O-O {[%emt 0:02:34]} O-O {[%emt 0:00:06]} 7. Nc3 {[%emt 0:16:12]} Ne4 {[%emt 0:00:43]} 8. Bd2 {[%emt 0:00:04]} f5 {[%emt 0:02:03]} 9. d5 {[%emt 0:08:58]} Bf6 {[%emt 0:01:48]} 10. Qc2 {[%emt 0:03:09]} Bxc3 {[%emt 0:09:36]} 11. Bxc3 {[%emt 0:00:35]} exd5 {[%emt 0:00:13] E18: Queen's Indian: Old Main Line (4 g3 Bb7 5 Bg2 Be7 6 0-0 0-0 7 Nc3).} 12. cxd5 {[%emt 0:01:31]} Bxd5 {[%emt 0:01:19]} 13. Be5 {[%emt 0:14:25] [#]} (13. Rad1 $11 c6 14. Bb4) 13... Nc6 $146 {[%emt 0:12:30] Black is slightly better.} ({Predecessor:} 13... c6 14. Rad1 Qe7 15. b3 Na6 16. Ba1 Nb4 17. Qb1 a5 18. a3 Na6 19. Nd4 Nac5 {0-1 (45) Hebden,M (2475)-Adams,M (2600) Sheffield 1991}) 14. Rfd1 {[%emt 0:07:42]} Be6 {[%emt 0:13:49]} 15. Nd4 {[%emt 0:14:45]} Nxd4 {[%emt 0:08:58]} (15... Nxe5 $2 16. Nxe6 dxe6 17. Rxd8 Rfxd8 18. Qxc7 $18) 16. Rxd4 {[%emt 0:00:05]} d6 {[%emt 0:00:17][%cal Bd7d6,Bd6d5][%mdl 32]} 17. Bf4 {[%emt 0:06:51]} Qf6 {[%emt 0:04:03]} 18. Rad1 {[%emt 0:02:47]} Qf7 {[%emt 0:06:23]} (18... Bxa2 $2 19. Bxe4 fxe4 20. b3 $18) 19. Rc1 {[%emt 0:04:05]} Rac8 {[%emt 0:02:09]} (19... c5 $5 {[%cal Rc5d4]} 20. Bxe4 d5 21. Bxd5 Bxd5 $15) 20. Bxe4 {[%emt 0:02:34]} fxe4 {[%emt 0:00:35]} 21. Qxe4 {[%emt 0:00:16]} d5 {[%emt 0:01:57]} 22. Qe5 {[%emt 0:00:53][%cal Rc1c7]} c5 {[%emt 0:00:26]} 23. Rdd1 {[%emt 0:00:38]} (23. Rd2 $1 $15) 23... d4 $17 {[%emt 0:00:40] [#] Hoping for ...Rce8.} 24. b4 {[%emt 0:02:43][%cal Rb4c5]} Rce8 {[%emt 0:02:31]} ({Of course not} 24... cxb4 $6 25. Qxd4 Bc4 26. e4 $11) ({Resist} 24... Bxa2 25. bxc5 d3 26. cxb6 (26. exd3 Rfe8 $11) (26. Rxd3 Bc4 $11) 26... dxe2 27. Qxe2 axb6 28. Rxc8 Rxc8 29. Qa6 $14) ({Better is} 24... Rfe8 $17 25. bxc5 {[#]} Bb3 $1 26. axb3 Rxe5 27. Bxe5 Rxc5 28. Bxd4 Rxc1 29. Rxc1 Qxb3) 25. bxc5 $15 {[%emt 0:00:45]} Bb3 $36 {[%emt 0:01:55][%mdl 2048] Black is pushing.} 26. Qxd4 {[%emt 0:00:22]} (26. Qxe8 $1 $15 Rxe8 27. axb3) 26... bxc5 $17 {[%emt 0:02:36]} 27. Rxc5 {[%emt 0:04:21]} Bxd1 {[%emt 0:00:10]} 28. Qxd1 {[%emt 0:00:01]} Qxa2 {[%emt 0:00:18]} 29. Be3 {[%emt 0:01:34]} a5 {[%emt 0:05:44][%cal Ba7a5,Ba5a4][%mdl 32]} 30. h4 {[%emt 0:00:23]} a4 {[%emt 0:00:45]} 31. h5 {[%emt 0:00:26]} (31. Rg5 $17 {might work better.}) 31... Qb3 {[%emt 0:00:14]} 32. Qd4 {[%emt 0:00:24]} Qb1+ $2 {[%emt 0:01:36]} ({Black should try} 32... Rd8 $19 33. Qe5 Rfe8) 33. Rc1 $15 {[%emt 0:00:54]} Qe4 {[%emt 0:00:03] Strongly threatening ...Qxd4. The board is on fire.} 34. Qd6 {[%emt 0:00:27][%mdl 8192] This move loses the game for White.} (34. Qd2 $15) 34... Rf5 $19 {[%emt 0:01:06]} 35. Rc5 {[%emt 0:00:33]} (35. Qd4 $142) 35... Rxc5 {[%emt 0:01:40]} 36. Qxc5 {[%emt 0:00:01]} h6 {[%emt 0:00:10]} 37. Qd6 {[%emt 0:00:28]} Re5 {[%emt 0:03:19]} 38. Qd8+ {[%emt 0:01:00]} Kh7 {[%emt 0:00:12]} 39. Bd4 {[%emt 0:00:33]} Rd5 {[%emt 0:00:35]} 40. Qb6 {[%emt 0:00:17]} Rxd4 {[%emt 0:00:18] Weighted Error Value: White=0.82/Black=0.18 (very precise)} 0-1

[Event "1000GM Saint Louis 2022"]
[Site "Saint Louis"]
[Date "2022.07.19"]
[Round "2.1"]
[White "Woodward, Andy"]
[Black "Dragun, Kamil"]
[Result "1/2-1/2"]
[ECO "E11"]
[WhiteElo "2486"]
[BlackElo "2563"]
[Annotator "TA"]
[PlyCount "31"]
[EventDate "2022.07.20"]
[EventType "tourn"]
[EventCountry "USA"]
[SourceTitle "playchess.com"]
[Source "ChessBase"]
[SourceQuality "1"]
[TimeControl "5400+30"]

{[%evp 18,31,10,10,18,0,0,-6,-12,-1,0,0,0,-14,0,0]} 1. d4 {[%emt 0:00:03]} Nf6 {[%emt 0:00:05]} 2. c4 {[%emt 0:00:13]} e6 {[%emt 0:00:04]} 3. g3 {[%emt 0:00:08]} Bb4+ {[%emt 0:01:09]} 4. Bd2 {[%emt 0:00:10]} Be7 {[%emt 0:00:21]} 5. Bg2 {[%emt 0:00:09]} d5 {[%emt 0:00:07]} 6. Nf3 {[%emt 0:00:08]} c6 {[%emt 0:00:08]} 7. O-O {[%emt 0:00:12]} Nbd7 {[%emt 0:00:03]} 8. Qc2 {[%emt 0:00:12]} O-O {[%emt 0:00:10]} 9. Rd1 {[%emt 0:06:59]} b6 {[%emt 0:00:48]} 10. b3 {[%emt 0:00:42] The position is equal.} a5 {[%emt 0:00:24] E11: Bogo-Indian.} 11. Bf4 {[%emt 0:06:39]} Ba6 {[%emt 0:04:27]} 12. Nbd2 {[%emt 0:06:21]} Nh5 {[%emt 0:03:20]} 13. Be3 {[%emt 0:01:14]} Nhf6 {[%emt 0:00:13]} 14. Bf4 {[%emt 0:01:41]} Nh5 {[%emt 0:00:29]} 15. Be3 {[%emt 0:00:45] [#]} Nhf6 $146 {[%emt 0:01:29]} ({Predecessor:} 15... Rc8 16. Ne5 Qc7 17. Nxd7 Qxd7 18. Nf3 Nf6 19. Bf4 Rfd8 20. Ne5 Qe8 21. Qb2 Qf8 22. a3 h6 {0-1 (56) Thybo,J (2590)-Van Foreest,J (2702) Warsaw 2021}) 16. Bf4 {[%emt 0:01:43] An uneventful encounter.  Weighted Error Value: White=0.03 (flawless) /Black=0.03 (flawless)} 1/2-1/2